bitfinex/quotes_BTCUSD_20251016
["timestamp","ask_amount","ask_price","bid_price","bid_amount"]
[1760650908379,0.68762365,108460.0,108450.0,2.00015043]
[1760650913106,0.7205704,108460.0,108450.0,2.00015043]
[1760650913457,0.46588881,108460.0,108450.0,2.00015043]
[1760650913660,0.6780245,108460.0,108450.0,2.00015043]
[1760650913867,0.76688279,108460.0,108450.0,2.00015043]
[1760650922769,0.76688515,108460.0,108450.0,2.00015043]
[1760650923379,0.7998319,108460.0,108450.0,2.00015043]
[1760650924568,0.77493833,108460.0,108450.0,2.00015043]
[1760650924770,0.68608004,108460.0,108450.0,2.00015043]
[1760650927227,0.73557319,108460.0,108450.0,2.00015043]
[1760650928287,0.70262644,108460.0,108450.0,2.00015043]
[1760650928947,0.73587184,108460.0,108450.0,2.00015043]
[1760650937662,0.71994286,108460.0,108450.0,2.00015043]
[1760650937866,0.80962494,108460.0,108450.0,2.00015043]
[1760650940497,0.79230852,108460.0,108450.0,2.00015043]
[1760650943397,0.82555123,108460.0,108450.0,2.00015043]
[1760650943630,0.79230852,108460.0,108450.0,2.00015043]
[1760650958741,0.44435504,108460.0,108450.0,2.00015043]
[1760650959257,0.46166997,108460.0,108450.0,2.00015043]
[1760650959896,0.44435504,108460.0,108450.0,2.00015043]
[1760650960050,0.35467296,108460.0,108450.0,2.00015043]
[1760650960933,0.37960752,108460.0,108450.0,2.00015043]
[1760650961128,0.35467296,108460.0,108450.0,2.00015043]
[1760650963603,0.71960871,108460.0,108450.0,2.00015043]
[1760650963805,0.69467296,108460.0,108450.0,2.00015043]
[1760650964794,0.80167184,108460.0,108450.0,2.00015043]
[1760650968740,0.81791986,108460.0,108450.0,2.00015043]
[1760650970322,0.76442006,108460.0,108450.0,2.00015043]
[1760650970700,0.71492691,108460.0,108450.0,2.00015043]
[1760650972472,0.76479302,108460.0,108450.0,2.00015043]
[1760650973850,0.86199302,108460.0,108450.0,2.00015043]
[1760650974056,0.76479302,108460.0,108450.0,2.00015043]
[1760650974299,0.76478836,108460.0,108450.0,2.00015043]
[1760650974498,0.85447044,108460.0,108450.0,2.00015043]
[1760650982809,5.77352544,108460.0,108450.0,2.00015043]
[1760650983950,5.87072544,108460.0,108450.0,2.00015043]
[1760650984149,5.77352544,108460.0,108450.0,2.00015043]
[1760650992495,5.72365933,108460.0,108450.0,2.00015043]
[1760650995843,5.72126036,108460.0,108450.0,2.00015043]
[1760651002124,5.72126477,108460.0,108450.0,2.00015043]
[1760651002968,5.49250187,108460.0,108450.0,2.00015043]
[1760651003207,5.70464008,108460.0,108450.0,2.00015043]
[1760651005471,5.57877572,108460.0,108450.0,2.00015043]
[1760651005670,5.55314656,108460.0,108450.0,2.00015043]
[1760651006330,5.52821139,108460.0,108450.0,2.00015043]
[1760651008299,0.60915639,108460.0,108450.0,1.95015043]
[1760651021618,0.62906044,108460.0,108450.0,1.95015043]
[1760651024406,0.44617814,108460.0,108450.0,1.95015043]
[1760651027755,0.38764249,108460.0,108450.0,2.57322649]
[1760651027958,0.01990405,108460.0,108450.0,2.57322649]
[1760651028167,0.51761168,108470.0,108460.0,0.18439977]
[1760651028380,0.53751727,108470.0,108460.0,0.18439977]
[1760651030370,0.53851727,108470.0,108460.0,0.18439977]
[1760651030585,0.51861168,108470.0,108460.0,0.18439977]
[1760651030793,0.17861168,108470.0,108460.0,0.62305905]
[1760651031431,0.17379098,108470.0,108460.0,0.62305905]
[1760651032151,0.17379098,108470.0,108460.0,0.18439977]
[1760651032554,0.001,108470.0,108460.0,0.18439977]
[1760651032775,0.001,108470.0,108460.0,0.62305905]
[1760651033014,0.001,108470.0,108460.0,0.65078544]
[1760651033432,0.001,108470.0,108460.0,0.21212616]
[1760651033657,0.61825245,108480.0,108460.0,0.65078544]
[1760651033796,0.59835061,108480.0,108470.0,0.20282104]
[1760651034202,0.59835061,108480.0,108470.0,0.18438277]
[1760651034409,0.61824441,108480.0,108470.0,0.18438277]
[1760651035951,0.61924441,108480.0,108470.0,0.18438277]
[1760651036153,0.61824441,108480.0,108470.0,0.18438277]
[1760651041318,0.61822931,108480.0,108470.0,0.18438277]
[1760651042124,0.25835061,108480.0,108470.0,0.18438277]
[1760651044576,0.25835061,108480.0,108460.0,0.65078544]
[1760651044784,0.25835061,108480.0,108470.0,0.20282104]
[1760651044990,0.25835061,108480.0,108470.0,0.18438277]
[1760651051272,0.25615061,108480.0,108470.0,0.18438277]
[1760651053366,0.25615061,108480.0,108470.0,0.18433273]
[1760651053765,0.06476604,108480.0,108470.0,0.18433273]
[1760651053968,0.21826572,108490.0,108470.0,0.18433273]
[1760651053969,0.54906237,108490.0,108470.0,0.18433273]
[1760651054149,0.54906237,108490.0,108480.0,0.20280235]
[1760651054346,0.54904829,108490.0,108480.0,0.18436578]
[1760651054614,0.36469951,108490.0,108480.0,0.18436578]
[1760651055041,0.36569951,108490.0,108480.0,0.18436578]
[1760651055498,0.36469951,108490.0,108480.0,0.18436578]
[1760651055917,0.01987881,108490.0,108480.0,0.18436578]
[1760651056320,0.01987881,108490.0,108480.0,0.21208728]
[1760651058426,0.20422759,108490.0,108480.0,0.21208728]
[1760651059003,0.01987881,108490.0,108480.0,0.21208728]
[1760651059222,0.20422759,108490.0,108480.0,0.21208728]
[1760651060863,0.20422759,108490.0,108480.0,0.0277215]
[1760651062343,0.2291056,108490.0,108480.0,0.0277215]
[1760651063521,0.2291056,108490.0,108480.0,0.3017774]
[1760651064322,0.20422759,108490.0,108480.0,0.3017774]
[1760651064918,0.20422759,108490.0,108480.0,0.11741162]
[1760651065136,0.20422759,108490.0,108480.0,0.3017774]
[1760651067749,0.20422759,108490.0,108480.0,0.11741162]
[1760651067882,0.20422759,108490.0,108480.0,0.3017774]
[1760651070497,0.20422759,108490.0,108480.0,0.11741162]
[1760651070710,0.20422759,108490.0,108480.0,0.3017774]
[1760651071842,0.20422759,108490.0,108480.0,0.11741162]
[1760651072028,0.20422759,108490.0,108480.0,0.3017774]
[1760651072371,0.20422759,108490.0,108480.0,0.11741162]
[1760651078023,0.21962527,108500.0,108480.0,0.11741162]
[1760651078226,0.18434878,108490.0,108480.0,0.11741162]
[1760651083794,0.18434878,108490.0,108480.0,0.08969012]
[1760651083996,0.18434878,108490.0,108480.0,0.2740559]
[1760651084224,0.18434878,108490.0,108480.0,0.30177588]
[1760651085465,0.18434878,108490.0,108480.0,0.1174101]
[1760651085822,0.18434878,108490.0,108480.0,0.13584667]
[1760651086030,0.18434878,108490.0,108480.0,0.32021245]
[1760651086234,0.18434878,108490.0,108480.0,0.30177588]
[1760651090167,0.20428115,108490.0,108480.0,0.30177588]
[1760651096512,0.01993237,108490.0,108480.0,0.30177588]
[1760651097135,0.21962527,108500.0,108490.0,0.18434878]
[1760651097136,0.22547929,108500.0,108490.0,0.18434878]
[1760651097706,0.22547929,108500.0,108490.0,0.2740389]
[1760651097911,0.0411463,108500.0,108490.0,0.2740389]
[1760651098248,0.04119642,108500.0,108490.0,0.2740389]
[1760651101456,0.20559584,108500.0,108490.0,0.2740389]
[1760651101657,0.22551871,108500.0,108490.0,0.2740389]
[1760651101857,0.30439606,108500.0,108480.0,0.21208576]
[1760651102063,0.18434878,108490.0,108480.0,0.30177588]
[1760651102736,0.32929964,108500.0,108480.0,0.30177588]
[1760651102988,0.30439606,108500.0,108480.0,0.30177588]
[1760651103599,0.22551871,108500.0,108480.0,0.30177588]
[1760651104199,0.25042229,108500.0,108480.0,0.30177588]
[1760651104746,0.22551871,108500.0,108480.0,0.30177588]
[1760651105951,0.22551871,108500.0,108480.0,0.73994286]
[1760651106363,0.22551871,108500.0,108480.0,0.30177588]
[1760651106503,0.25042229,108500.0,108480.0,0.73994286]
[1760651106709,0.22551871,108500.0,108480.0,0.73994286]
[1760651108145,0.25042229,108500.0,108480.0,0.73994286]
[1760651109600,0.22551871,108500.0,108480.0,0.73994286]
[1760651112932,0.18434878,108490.0,108480.0,0.73994286]
[1760651114127,0.22551871,108500.0,108480.0,0.73994286]
[1760651114322,0.22551871,108500.0,108490.0,0.18434878]
[1760651114527,0.22551871,108500.0,108480.0,0.73994286]
[1760651114729,0.22551871,108500.0,108490.0,0.18434878]
[1760651116313,0.20425466,108500.0,108490.0,0.18434878]
[1760651116521,0.2278857,108500.0,108490.0,0.18434878]
[1760651116720,0.2278857,108500.0,108480.0,0.73994286]
[1760651116948,0.2278857,108500.0,108490.0,0.01843487]
[1760651117218,0.2278857,108500.0,108490.0,0.20278365]
[1760651117443,0.2278857,108500.0,108480.0,0.73994286]
[1760651117643,0.2278857,108500.0,108490.0,0.20278365]
[1760651117934,0.2278857,108500.0,108490.0,0.18434878]
[1760651118345,0.20796283,108500.0,108490.0,0.18434878]
[1760651118514,0.22789249,108500.0,108490.0,0.18434878]
[1760651118919,0.22789249,108500.0,108480.0,0.73994286]
[1760651119326,0.22789249,108500.0,108490.0,0.18434878]
[1760651131453,0.25280457,108500.0,108490.0,0.18434878]
[1760651131709,0.22789249,108500.0,108490.0,0.18434878]
[1760651132350,0.25280457,108500.0,108490.0,0.18434878]
[1760651133219,0.22789249,108500.0,108490.0,0.18434878]
[1760651133774,0.25280457,108500.0,108490.0,0.18434878]
[1760651133978,0.22789249,108500.0,108490.0,0.18434878]
[1760651134426,5.18433179,108500.0,108490.0,0.18434878]
[1760651134636,0.18433179,108500.0,108490.0,0.18434878]
[1760651138919,0.18433179,108500.0,108480.0,0.73994286]
[1760651139901,0.18433179,108500.0,108480.0,0.30177588]
[1760651141242,0.18433179,108500.0,108490.0,0.18434878]
[1760651148782,0.20924387,108500.0,108490.0,0.18434878]
[1760651154487,0.18434878,108490.0,108480.0,0.1174101]
[1760651154703,0.18438277,108470.0,108460.0,0.01839673]
[1760651154918,5.18438277,108470.0,108460.0,0.01839673]
[1760651155141,0.18439977,108460.0,108450.0,1.97772726]
[1760651156005,0.20506434,108460.0,108450.0,1.97772726]
[1760651156221,0.24600309,108460.0,108450.0,1.95]
[1760651156464,0.24600309,108460.0,108450.0,1.95005012]
[1760651158900,5.24600309,108460.0,108450.0,1.95005012]
[1760651159114,5.26594348,108460.0,108450.0,1.95005012]
[1760651159346,5.63367651,108460.0,108450.0,1.95005012]
[1760651162219,5.65858859,108460.0,108450.0,1.95005012]
[1760651162373,5.69183637,108460.0,108450.0,1.95005012]
[1760651163435,5.72801865,108460.0,108450.0,1.95005012]
[1760651163639,5.70410657,108460.0,108450.0,1.95005012]
[1760651163994,5.7539681,108460.0,108450.0,1.95005012]
[1760651164401,5.51124584,108460.0,108450.0,1.95005012]
[1760651164644,5.69564561,108460.0,108450.0,1.95005012]
[1760651168615,5.69564561,108460.0,108450.0,1.94791196]
[1760651168797,5.66923837,108460.0,108450.0,1.94791196]
[1760651170787,5.70248615,108460.0,108450.0,1.94791196]
[1760651171499,5.7236441,108460.0,108450.0,1.94791196]
[1760651171910,5.69890881,108460.0,108450.0,1.94791196]
[1760651176377,5.76595163,108460.0,108450.0,1.94791196]
[1760651177305,5.73270385,108460.0,108450.0,1.94791196]
[1760651178850,5.74949723,108460.0,108450.0,1.94791196]
[1760651179211,5.74949723,108460.0,108450.0,1.89802272]
[1760651179411,5.73237,108460.0,108450.0,1.89802272]
[1760651179821,5.73238546,108460.0,108450.0,1.89802272]
[1760651181197,5.68285778,108460.0,108450.0,1.89802272]
[1760651183364,5.74951269,108460.0,108450.0,1.89802272]
[1760651184407,5.74951269,108460.0,108450.0,1.82318888]
[1760651188803,5.74960679,108460.0,108450.0,1.82318888]
[1760651189580,5.68295188,108460.0,108450.0,1.82318888]
[1760651193277,5.74945991,108460.0,108450.0,1.72341093]
[1760651194363,5.74945991,108460.0,108450.0,1.59868878]
[1760651195506,5.74948931,108460.0,108450.0,1.59868878]
[1760651197665,5.52938389,108460.0,108450.0,1.59868878]
[1760651197880,5.57926217,108460.0,108450.0,1.59868878]
[1760651198327,5.56261089,108460.0,108450.0,1.59868878]
[1760651204279,5.5875024,108460.0,108450.0,1.59868878]
[1760651204478,5.61248917,108460.0,108450.0,1.59868878]
[1760651204886,5.64418425,108460.0,108450.0,1.59868878]
[1760651205323,5.61248917,108460.0,108450.0,1.59868878]
[1760651205744,5.54529064,108460.0,108450.0,1.59868878]
[1760651206130,5.57017837,108460.0,108450.0,1.59868878]
[1760651207722,5.15212325,108460.0,108450.0,1.59868878]
[1760651207942,5.17701098,108460.0,108450.0,1.59868878]
[1760651208146,5.15212325,108460.0,108450.0,1.59868878]
[1760651209481,4.96772348,108460.0,108450.0,1.78310556]
[1760651209682,0.02220948,108460.0,108450.0,1.78310556]
[1760651210284,0.02120948,108460.0,108450.0,1.78310556]
[1760651210485,0.18438277,108470.0,108460.0,0.18439977]
[1760651210693,5.12989677,108470.0,108460.0,0.18439977]
[1760651211268,0.18438277,108470.0,108460.0,0.18439977]
[1760651211478,5.46989677,108470.0,108460.0,0.18439977]
[1760651211698,5.50799374,108470.0,108460.0,0.18439977]
[1760651212128,4.98361097,108470.0,108460.0,0.18439977]
[1760651212331,0.03809697,108470.0,108460.0,0.18439977]
[1760651212638,0.19359949,108480.0,108460.0,0.18439977]
[1760651212837,0.19359949,108480.0,108470.0,0.01843827]
[1760651213651,0.53359949,108480.0,108470.0,0.01843827]
[1760651213843,0.53459949,108480.0,108470.0,0.01843827]
[1760651214951,0.53359949,108480.0,108470.0,0.01843827]
[1760651215164,0.57103374,108480.0,108470.0,0.01843827]
[1760651215585,0.56180003,108480.0,108470.0,0.20282104]
[1760651215790,0.37743425,108480.0,108470.0,0.20282104]
[1760651215992,0.03743425,108480.0,108470.0,0.20282104]
[1760651216487,0.03755039,108480.0,108470.0,0.20282104]
[1760651216636,0.03755039,108480.0,108470.0,0.18438277]
[1760651216845,0.01403813,108490.0,108480.0,0.18436578]
[1760651217079,0.35403813,108490.0,108480.0,0.18436578]
[1760651217238,0.53356621,108490.0,108480.0,0.18436578]
[1760651217456,0.52915249,108500.0,108480.0,0.18436578]
[1760651217657,4.945514,108490.0,108480.0,0.18436578]
[1760651218345,4.98262981,108490.0,108480.0,0.18436578]
[1760651218588,0.03711581,108490.0,108480.0,0.18436578]
[1760651218999,4.945514,108490.0,108480.0,0.18436578]
[1760651220278,0.18434878,108490.0,108480.0,0.18436578]
[1760651220679,4.945514,108490.0,108480.0,0.18436578]
[1760651222181,5.12986278,108490.0,108480.0,0.18436578]
[1760651222416,0.18434878,108490.0,108480.0,0.18436578]
[1760651222845,0.22243108,108490.0,108480.0,0.18436578]
[1760651223776,0.0380823,108490.0,108480.0,0.18436578]
[1760651224012,0.54898234,108500.0,108490.0,0.18434878]
[1760651224224,0.52915249,108500.0,108490.0,0.18434878]
[1760651225629,0.56719358,108500.0,108490.0,0.18434878]
[1760651226458,0.38286179,108500.0,108490.0,0.18434878]
[1760651226840,0.37804109,108500.0,108490.0,0.18434878]
[1760651228143,0.37804109,108500.0,108490.0,0.71213256]
[1760651228340,0.0048207,108510.0,108500.0,0.18433179]
[1760651228529,0.5291355,108510.0,108500.0,0.18433179]
[1760651228747,0.54896092,108510.0,108500.0,0.18433179]
[1760651228946,0.54896105,108510.0,108500.0,0.18433179]
[1760651232250,0.54895785,108510.0,108500.0,0.18433179]
[1760651232677,0.58600403,108510.0,108500.0,0.18433179]
[1760651232888,0.58118333,108510.0,108500.0,0.18433179]
[1760651238334,0.24118333,108510.0,108500.0,0.18433179]
[1760651241157,0.26607106,108510.0,108500.0,0.18433179]
[1760651242405,0.08175626,108510.0,108500.0,0.18433179]
[1760651242602,0.26607106,108510.0,108500.0,0.18433179]
[1760651243105,0.05686853,108510.0,108500.0,0.27402191]
[1760651243484,0.05686853,108510.0,108500.0,0.71211557]
[1760651244614,0.34,108520.0,108510.0,0.1843148]
[1760651244867,0.52430247,108520.0,108510.0,0.20274628]
[1760651245264,0.56167308,108520.0,108510.0,0.20274628]
[1760651247076,0.5617232,108520.0,108510.0,0.20274628]
[1760651247284,0.37742073,108520.0,108510.0,0.20274628]
[1760651248009,0.03742073,108520.0,108510.0,0.20274628]
[1760651248155,0.03742073,108520.0,108510.0,0.71209858]
[1760651249007,5.012e-05,108520.0,108510.0,0.71209858]
[1760651250243,5.012e-05,108520.0,108510.0,0.80465858]
[1760651251499,5.012e-05,108520.0,108510.0,0.71209858]
[1760651251723,5.012e-05,108520.0,108510.0,0.80465858]
[1760651253625,5.012e-05,108520.0,108510.0,0.71209858]
[1760651253835,5.012e-05,108520.0,108510.0,0.80465858]
[1760651254263,5.012e-05,108520.0,108510.0,1.27893452]
[1760651254471,5.012e-05,108520.0,108510.0,1.31688085]
[1760651254694,5.012e-05,108520.0,108510.0,6.31688085]
[1760651254900,5.012e-05,108520.0,108510.0,6.34458614]
[1760651255102,5.012e-05,108520.0,108510.0,6.25202614]
[1760651255308,5.012e-05,108520.0,108510.0,6.34458614]
[1760651255716,5.012e-05,108520.0,108510.0,6.34558614]
[1760651259539,5.012e-05,108520.0,108510.0,6.68558614]
[1760651259965,5.012e-05,108520.0,108510.0,6.59302614]
[1760651260209,5.012e-05,108520.0,108510.0,6.68558614]
[1760651262634,5.012e-05,108520.0,108510.0,6.59302614]
[1760651262978,5.012e-05,108520.0,108510.0,6.68554614]
[1760651263609,5.012e-05,108520.0,108510.0,6.59302614]
[1760651263826,5.012e-05,108520.0,108510.0,6.68554614]
[1760651264443,5.012e-05,108520.0,108510.0,6.59302614]
[1760651264679,5.012e-05,108520.0,108510.0,6.68554614]
[1760651265108,5.012e-05,108520.0,108510.0,6.59302614]
[1760651265319,5.012e-05,108520.0,108510.0,6.68554614]
[1760651265959,5.012e-05,108520.0,108510.0,6.59302614]
[1760651266175,5.012e-05,108520.0,108510.0,6.83324614]
[1760651270767,0.52423795,108560.0,108550.0,0.18424689]
[1760651271058,0.01989285,108560.0,108550.0,0.73045535]
[1760651271234,5.013e-05,108560.0,108550.0,0.71203067]
[1760651273024,4.945514,108560.0,108550.0,0.71203067]
[1760651274198,4.945514,108560.0,108550.0,0.27393701]
[1760651274388,4.945514,108560.0,108550.0,0.71203067]
[1760651275589,4.98235678,108560.0,108550.0,0.71203067]
[1760651275803,0.03684278,108560.0,108550.0,0.71203067]
[1760651276222,4.945514,108560.0,108550.0,0.71203067]
[1760651279255,0.52421504,108570.0,108560.0,0.18422991]
[1760651279488,0.52471624,108570.0,108560.0,0.2026529]
[1760651280398,0.52471624,108570.0,108560.0,0.01842299]
[1760651280595,0.56152154,108570.0,108560.0,0.01842299]
[1760651281012,0.56152154,108570.0,108560.0,0.2026529]
[1760651281215,0.56152154,108570.0,108560.0,0.01842299]
[1760651282811,0.56152154,108570.0,108560.0,0.2026529]
[1760651283307,0.56152154,108570.0,108560.0,0.01842299]
[1760651283657,0.56152154,108570.0,108560.0,0.2026529]
[1760651284053,0.56152154,108570.0,108560.0,0.01842299]
[1760651284275,0.56152154,108570.0,108560.0,0.2026529]
[1760651284495,0.56152154,108570.0,108560.0,0.01842299]
[1760651284694,0.56152154,108570.0,108560.0,0.2026529]
[1760651284901,0.58142035,108570.0,108560.0,0.01842299]
[1760651285096,0.58142035,108570.0,108560.0,0.2026529]
[1760651285248,0.58142035,108570.0,108560.0,0.01842299]
[1760651285654,0.58142035,108570.0,108560.0,0.2026529]
[1760651287238,0.58142035,108570.0,108560.0,0.01842299]
[1760651288216,0.58142035,108570.0,108560.0,0.2026529]
[1760651292483,0.24142035,108570.0,108560.0,0.2026529]
[1760651292685,0.24141826,108570.0,108560.0,0.2026529]
[1760651299255,0.22151945,108570.0,108560.0,0.2026529]
[1760651302232,0.0373065,108570.0,108560.0,0.2026529]
[1760651302458,0.22151945,108570.0,108560.0,0.2026529]
[1760651304762,0.0373065,108570.0,108560.0,0.2026529]
[1760651307792,0.0005012,108570.0,108560.0,0.2026529]
[1760651308125,0.0005012,108570.0,108560.0,0.29234302]
[1760651308325,0.0005012,108570.0,108560.0,0.27392003]
[1760651312592,0.0005012,108570.0,108560.0,0.71146807]
[1760651313394,0.0005012,108570.0,108560.0,0.27392003]
[1760651313598,0.0005012,108570.0,108560.0,0.71146807]
[1760651314995,0.0005012,108570.0,108560.0,0.80398807]
[1760651315360,0.0005012,108570.0,108560.0,0.83168551]
[1760651316702,0.0005012,108570.0,108560.0,0.83164551]
[1760651316915,0.0005012,108570.0,108560.0,0.73916551]
[1760651317070,0.0005012,108570.0,108560.0,0.86977337]
[1760651318667,0.0005012,108570.0,108560.0,0.77729337]
[1760651318858,0.0005012,108570.0,108560.0,0.86977337]
[1760651319063,0.0005012,108570.0,108560.0,0.83164551]
[1760651319273,0.0005012,108570.0,108560.0,0.73916551]
[1760651319489,0.0005012,108570.0,108560.0,0.81326206]
[1760651319693,0.0005012,108570.0,108560.0,0.90574206]
[1760651321439,0.0005012,108570.0,108560.0,0.90674206]
[1760651321688,0.0005012,108570.0,108560.0,1.3442901]
[1760651321896,0.0005012,108570.0,108560.0,0.90674206]
[1760651322259,0.0005012,108570.0,108560.0,0.90574206]
[1760651322802,0.0005012,108570.0,108560.0,1.3432901]
[1760651323426,0.0005012,108570.0,108560.0,1.3442901]
[1760651325560,0.0002,108580.0,108570.0,0.18421295]
[1760651325759,0.0002,108580.0,108570.0,1.29608272]
[1760651326009,0.0002,108580.0,108570.0,1.27766143]
[1760651326387,0.0002,108580.0,108570.0,1.30535324]
[1760651326952,4.945514,108610.0,108600.0,0.18416206]
[1760651327151,0.00015027,108610.0,108600.0,0.20257826]
[1760651328733,0.03844815,108610.0,108600.0,0.20257826]
[1760651330120,0.00015027,108610.0,108600.0,0.72981642]
[1760651330319,0.00015027,108610.0,108600.0,0.71140022]
[1760651338239,0.00015027,108610.0,108600.0,0.73908799]
[1760651341458,0.00015027,108610.0,108600.0,0.77848799]
[1760651345206,0.00015027,108610.0,108600.0,0.87096799]
[1760651345407,0.00015027,108610.0,108600.0,0.77848799]
[1760651345626,0.00015027,108610.0,108600.0,0.87096799]
[1760651349514,0.00015027,108610.0,108600.0,1.30751091]
[1760651350509,0.00015027,108610.0,108600.0,1.40751091]
[1760651351043,0.00015027,108610.0,108600.0,1.74751091]
[1760651352314,0.00015027,108610.0,108600.0,1.78488959]
[1760651352529,0.00015027,108610.0,108600.0,1.78484959]
[1760651352904,0.00015027,108610.0,108600.0,1.69240959]
[1760651353109,0.00015027,108610.0,108600.0,1.78484959]
[1760651353857,0.00015027,108610.0,108600.0,1.65503091]
[1760651354056,0.00015027,108610.0,108600.0,1.74747091]
[1760651354623,0.00015027,108610.0,108600.0,1.65503091]
[1760651357628,0.00015027,108610.0,108600.0,1.69177657]
[1760651364526,0.00015027,108610.0,108600.0,1.65503091]
[1760651365123,0.00015027,108610.0,108600.0,1.69300035]
[1760651365332,0.00015027,108610.0,108600.0,1.65503091]
[1760651366277,0.00015027,108610.0,108600.0,0.78093995]
[1760651366485,0.00015027,108610.0,108600.0,1.65503091]
[1760651366784,0.00015027,108610.0,108600.0,1.74747091]
[1760651367751,0.00015027,108610.0,108600.0,1.78365319]
[1760651368475,0.00015027,108610.0,108600.0,1.74425319]
[1760651368683,0.00015027,108610.0,108600.0,1.78152968]
[1760651370603,0.00015027,108610.0,108600.0,2.12613516]
[1760651370803,0.00015027,108610.0,108600.0,2.21857516]
[1760651371617,0.00015027,108610.0,108600.0,1.78152968]
[1760651371838,0.00015027,108610.0,108600.0,1.78252968]
[1760651372454,0.00015027,108610.0,108600.0,0.90843872]
[1760651372667,0.00015027,108610.0,108600.0,1.78252968]
[1760651374790,0.00015027,108610.0,108600.0,1.69008968]
[1760651375012,0.00015027,108610.0,108600.0,1.78252968]
[1760651375199,0.00015027,108610.0,108600.0,0.74253995]
[1760651375397,0.00015027,108610.0,108600.0,0.37485218]
[1760651375602,0.18429537,108610.0,108600.0,0.101]
[1760651376053,0.18429537,108610.0,108600.0,0.1]
[1760651376574,5.16865627,108610.0,108600.0,0.1]
[1760651376784,5.14964465,108610.0,108600.0,0.1]
[1760651376994,5.17443875,108610.0,108600.0,0.1]
[1760651377194,5.14964465,108610.0,108600.0,0.1]
[1760651377396,5.17443875,108610.0,108600.0,0.1]
[1760651378048,5.09519138,108610.0,108600.0,0.1]
[1760651379111,5.09619138,108610.0,108600.0,0.1]
[1760651382030,5.12388979,108610.0,108600.0,0.1]
[1760651383768,5.50007207,108610.0,108600.0,0.1]
[1760651386092,5.52486617,108610.0,108600.0,0.1]
[1760651387114,5.52486617,108610.0,108570.0,0.01839673]
[1760651387339,5.07540698,108580.0,108570.0,0.01839673]
[1760651387739,0.18422991,108560.0,108550.0,0.2118532]
[1760651387934,0.18422991,108560.0,108550.0,0.30154332]
[1760651388142,0.18422819,108570.0,108550.0,0.28314659]
[1760651388492,4.891211,108560.0,108550.0,0.28314659]
[1760651388835,4.891211,108560.0,108550.0,0.28364779]
[1760651389426,4.891211,108560.0,108550.0,0.28464779]
[1760651389628,5.07544091,108560.0,108550.0,0.27443821]
[1760651389835,0.18422991,108560.0,108550.0,0.27543821]
[1760651391389,0.18422991,108560.0,108550.0,0.27443821]
[1760651391796,0.18422991,108560.0,108550.0,0.27543821]
[1760651393431,0.18422991,108560.0,108550.0,0.0015012]
[1760651393628,0.18422991,108560.0,108550.0,0.18574809]
[1760651395510,0.18422819,108570.0,108550.0,0.18574809]
[1760651395715,4.891211,108560.0,108550.0,0.18574809]
[1760651397373,0.18422819,108570.0,108550.0,0.18574809]
[1760651397578,0.18422819,108570.0,108550.0,0.62279357]
[1760651398265,5.07542395,108570.0,108560.0,0.18422991]
[1760651398490,0.23668986,108590.0,108570.0,0.18421295]
[1760651398491,0.0277015,108590.0,108570.0,0.18421295]
[1760651398713,5.07537356,108600.0,108590.0,0.18417902]
[1760651398882,0.22123025,108600.0,108590.0,0.18417902]
[1760651399867,0.22123025,108600.0,108590.0,0.18432929]
[1760651401563,0.03706769,108600.0,108590.0,0.62137477]
[1760651401767,0.18414664,108610.0,108600.0,0.18416206]
[1760651401996,0.18414664,108610.0,108600.0,0.20257826]
[1760651403800,0.22242868,108610.0,108600.0,0.20257826]
[1760651404500,0.22342868,108610.0,108600.0,0.20257826]
[1760651408079,4.891211,108610.0,108600.0,0.20257826]
[1760651408284,0.20391428,108610.0,108600.0,0.20257826]
[1760651408485,0.18414664,108610.0,108600.0,0.20257826]
[1760651412523,0.1841451,108610.0,108600.0,0.20257826]
[1760651414365,4.891211,108610.0,108600.0,0.20257826]
[1760651414605,4.891211,108610.0,108600.0,0.6398283]
[1760651414809,4.891211,108610.0,108600.0,0.18416206]
[1760651414986,0.1841451,108610.0,108600.0,0.20257826]
[1760651415578,0.1841451,108610.0,108600.0,0.18416206]
[1760651416151,0.1841451,108610.0,108600.0,0.20257826]
[1760651416855,4.891211,108610.0,108600.0,0.20257826]
[1760651422523,0.1841451,108610.0,108600.0,0.20257826]
[1760651422852,4.891211,108610.0,108600.0,0.18416206]
[1760651423399,5.0753561,108610.0,108600.0,0.18416206]
[1760651423603,0.1841451,108610.0,108600.0,0.18416206]
[1760651423961,0.1841451,108610.0,108600.0,0.20257826]
[1760651424501,0.1841451,108610.0,108600.0,0.18416206]
[1760651424912,0.1841451,108610.0,108590.0,0.18432929]
[1760651425113,5.07537306,108600.0,108590.0,0.00015027]
[1760651425354,5.09520275,108600.0,108590.0,0.00015027]
[1760651427328,5.11999685,108600.0,108590.0,0.00015027]
[1760651429711,5.15322385,108600.0,108590.0,0.00015027]
[1760651430119,5.11999685,108600.0,108590.0,0.00015027]
[1760651430287,4.891211,108590.0,108580.0,0.18419295]
[1760651430496,0.20400871,108590.0,108580.0,0.18419295]
[1760651431283,0.18417902,108590.0,108580.0,0.18419295]
[1760651432786,0.18422907,108590.0,108580.0,0.18419295]
[1760651434898,5.005e-05,108590.0,108580.0,0.18419295]
[1760651435284,0.18422907,108590.0,108580.0,0.18419295]
[1760651435486,0.18422907,108590.0,108580.0,0.22871992]
[1760651435690,0.18422907,108590.0,108580.0,0.18419295]
[1760651438340,5.005e-05,108590.0,108580.0,0.18419295]
[1760651440927,5.005e-05,108590.0,108580.0,0.62144299]
[1760651441150,5.005e-05,108590.0,108580.0,0.18419295]
[1760651443441,5.005e-05,108590.0,108580.0,0.20261254]
[1760651444006,5.005e-05,108590.0,108580.0,0.7295527]
[1760651444222,5.005e-05,108590.0,108580.0,0.71113311]
[1760651445608,5.005e-05,108590.0,108580.0,0.27388307]
[1760651445924,5.005e-05,108590.0,108580.0,0.80361311]
[1760651447240,5.0753561,108610.0,108600.0,0.18415128]
[1760651447389,0.20402487,108610.0,108600.0,0.20256748]
[1760651447621,5.008e-05,108610.0,108600.0,0.20256748]
[1760651459379,0.18415653,108620.0,108610.0,0.1841451]
[1760651460433,4.891211,108620.0,108610.0,0.20255961]
[1760651460633,0.03796912,108620.0,108610.0,0.1841451]
[1760651460838,0.03796912,108620.0,108610.0,0.20255961]
[1760651461043,4.891211,108620.0,108610.0,0.20255961]
[1760651461248,4.891211,108620.0,108610.0,0.1841451]
[1760651461489,4.791211,108620.0,108610.0,0.1841451]
[1760651461702,0.18925255,108630.0,108610.0,0.1841451]
[1760651461887,0.18930262,108630.0,108610.0,0.1841451]
[1760651462089,0.18930262,108630.0,108620.0,0.1]
[1760651464054,0.08930262,108630.0,108620.0,0.1]
[1760651464257,0.08930262,108630.0,108620.0,0.02841451]
[1760651464462,0.12588051,108630.0,108620.0,0.02841451]
[1760651465103,0.13508607,108630.0,108620.0,0.21254266]
[1760651471817,0.22073916,108630.0,108620.0,0.21254266]
[1760651472000,0.18416127,108630.0,108620.0,0.21254266]
[1760651474070,5.007e-05,108630.0,108620.0,0.21254266]
[1760651474271,5.007e-05,108630.0,108620.0,0.64961831]
[1760651476455,5.007e-05,108630.0,108620.0,0.21254266]
[1760651476685,5.007e-05,108630.0,108620.0,0.64961831]
[1760651477606,4.97530574,108640.0,108630.0,0.1841112]